fUST/lending_fUST_20240320
["ID","MTS","AMOUNT","RATE_DAILY","PERIOD"]
[319575995,1710877832322,-7039.4,0.00048908,4]
[319575997,1710877832332,-982.36159473,0.00048908,4]
[319576027,1710877837794,-18666.68592895,0.00048908,4]
[319576028,1710877837913,-651.05548472,0.00048909,4]
[319576029,1710877837923,-2130.98881402,0.00048909,4]
[319576030,1710877837935,-1246.09522721,0.0004891,90]
[319576031,1710877837944,-2000.0,0.00049152,30]
[319576032,1710877837953,-27275.1747,0.00049669,30]
[319576033,1710877837962,-1476.61107559,0.00049901,120]
[319576034,1710877837972,-1476.61107559,0.00049904,120]
[319576035,1710877837981,-60885.64456325,0.00049913,120]
[319576036,1710877838129,-1001.38038,0.00049913,120]
[319576040,1710877839819,-6461.2,0.00049913,120]
[319576125,1710877842897,-322.50861399,0.00047397,4]
[319576127,1710877842906,-197.23274501,0.00049913,120]
[319577231,1710878829195,-184.18488604,0.00037537,4]
[319577232,1710878829218,-1000.7003269,0.00037538,2]
[319577233,1710878829237,-419.87333795,0.00037638,2]
[319577234,1710878829256,-154.86062544,0.00037638,4]
[319577235,1710878829275,-800.79324474,0.00037639,4]
[319577236,1710878829295,-154.86062544,0.00037639,4]
[319577237,1710878829315,-1057.49907164,0.0003764,4]
[319577238,1710878831132,-192.09945726,0.0003764,4]
[319577239,1710878831151,-362.22986096,0.0003764,4]
[319577244,1710878948524,-154.84515485,0.00028358,2]
[319577245,1710878948545,-154.84515485,0.00028358,2]
[319577246,1710878948566,-154.84515485,0.00028359,2]
[319577247,1710878948585,-597.00397515,0.0002836,2]
[319577248,1710878948604,-210.03373486,0.0002836,2]
[319577249,1710878948624,-876.3244026,0.00028361,2]
[319577250,1710878948645,-4010.52202732,0.00028363,2]
[319577251,1710878953128,-736.54929626,0.00028363,2]
[319577252,1710878953152,-507.76164909,0.00028365,2]
[319577253,1710878957131,-33.06407304,0.00028365,2]
[319577254,1710878957153,-354.6909386,0.0003554,2]
[319577261,1710878974123,-380.67737198,0.0003554,2]
[319577262,1710878974145,-683.0,0.0003764,4]
[319577263,1710878974168,-1084.4278567,0.00037665,4]
[319577264,1710878974189,-1491.68029903,0.00037666,2]
[319577265,1710878974211,-735.36831058,0.0004054,2]
[319577266,1710878974233,-540.82572213,0.00042078,30]
[319577267,1710878974255,-166.666666,0.00042645,2]
[319577268,1710878974276,-195.219154,0.00043494,2]
[319577269,1710878974297,-24900.0,0.00043543,2]
[319577270,1710878974318,-198.085608,0.00043689,2]
[319577271,1710878974347,-483.986896,0.00043796,120]
[319577272,1710878974368,-166.666666,0.00043808,2]
[319577273,1710878974389,-540.82572213,0.00044453,30]
[319577274,1710878974411,-166.666666,0.0004497,2]
[319577275,1710878974433,-666.71179789,0.0004554,2]
[319577383,1710879037907,-234.75336,0.00041745,2]
[319577384,1710879037917,-68.65651269,0.0004554,2]
[319577385,1710879037927,-2000.0,0.0004656,30]
[319577386,1710879037936,-596.0,0.00047,120]
[319577387,1710879037946,-322.50861399,0.00047176,4]
[319577388,1710879037955,-166.666666,0.00047177,2]
[319577389,1710879037965,-1387.65229841,0.00047851,4]
[319577390,1710879038146,-1000.0,0.00047851,4]
[319577391,1710879038158,-4901.51672053,0.00047851,4]
[319577392,1710879038167,-201.1183208,0.00047852,30]
[319577393,1710879038313,-1798.8816792,0.00047852,30]
[319577394,1710879038324,-198.085608,0.00048159,2]
[319577395,1710879038341,-166.666666,0.00048463,2]
[319577396,1710879038351,-598.18290781,0.00048732,15]
[319577397,1710879038362,-189.11126,0.00048888,2]
[319577398,1710879038374,-2000.0,0.00049144,30]
[319577399,1710879038384,-1345.60368921,0.00049278,4]
[319577400,1710879038485,-1000.0,0.00049279,2]
[319577401,1710879038494,-154.86062544,0.0004929,4]
[319577402,1710879038503,-500.0,0.00049315,31]
[319577403,1710879038512,-500.0,0.00049315,31]
[319577404,1710879038521,-500.0,0.00049315,31]
[319577405,1710879038530,-500.22601956,0.00049315,31]
[319577406,1710879038539,-743.21,0.00049315,31]
[319577407,1710879038549,-743.21,0.00049315,31]
[319577408,1710879038558,-743.21,0.00049315,31]
[319577409,1710879038567,-500.0,0.00049315,31]
[319577410,1710879038576,-500.0,0.00049315,31]
[319577411,1710879038585,-500.0,0.00049315,31]
[319577412,1710879038594,-166.666666,0.00049749,2]
[319577413,1710879038603,-324.03136722,0.00049913,3]
[319577414,1710879038612,-104650.13970633,0.00049913,120]
[319577415,1710879038626,-1077.56359696,0.00049913,120]
[319577416,1710879038637,-2147.12798362,0.00049913,120]
[319577417,1710879038648,-6864.16705483,0.00049913,120]
[319577499,1710879043120,-26178.52861846,0.00049913,120]
[319577500,1710879043138,-23821.47138154,0.00049917,120]
[319577587,1710879951186,-1362.12354064,0.00025679,2]
[319577600,1710880146126,-597.00397515,0.00025589,2]
[319577601,1710880146148,-154.84515485,0.0002559,2]
[319577602,1710880146168,-596.01897216,0.0002559,2]
[319577603,1710880146188,-779.14717411,0.00025591,2]
[319577604,1710880146210,-204.98847702,0.00025591,2]
[319577605,1710880146233,-157.48043496,0.00025591,2]
[319577606,1710880146253,-405.07209328,0.00025592,2]
[319577607,1710880146275,-366.55193549,0.00025592,2]
[319577608,1710880146296,-154.84515485,0.00025592,2]
[319577609,1710880146318,-1617.76387324,0.00025592,2]
[319577610,1710880146342,-616.84182065,0.00025592,2]
[319577611,1710880146364,-210.03373486,0.00025592,2]
[319577612,1710880146384,-236.48109331,0.00025593,2]
[319577613,1710880146403,-280.9185099,0.00025593,2]
[319577614,1710880146422,-151.0,0.000256,2]
[319577615,1710880146442,-4866.04737452,0.000256,21]
[319577616,1710880146463,-3503.44419501,0.00025684,2]
[319577617,1710880146482,-445.71979906,0.00025694,2]
[319577618,1710880146502,-166.666666,0.00036382,2]
[319577619,1710880146522,-362.990172,0.00036638,120]
[319577620,1710880146542,-912.1859634,0.00037,120]
[319577621,1710880151109,-168.0,0.00025588,2]
[319577622,1710880156171,-68.48109331,0.00025588,2]
[319577623,1710880156192,-297.80218423,0.00037,120]
[319577624,1710880156428,-166.666666,0.00037374,2]
[319577625,1710880156464,-229.4552556,0.0003773,2]
[319577626,1710880156485,-189.11126,0.00037766,2]
[319577627,1710880156508,-192.0,0.0003784,2]
[319577628,1710880156530,-24900.0,0.0003784,2]
[319577629,1710880156552,-168.51257867,0.00037996,8]
[319577630,1710880156573,-179.309802,0.00038306,2]
[319577631,1710880156594,-179.309802,0.00038306,25]
[319577632,1710880156614,-179.309802,0.00038306,49]
[319577633,1710880156636,-179.309802,0.00038306,72]
[319577634,1710880156656,-179.309802,0.00038306,96]
[319577635,1710880156675,-179.309802,0.00038306,120]
[319577636,1710880156695,-166.666666,0.00038365,2]
[319577637,1710880156718,-166.666666,0.00039357,2]
[319577638,1710880156737,-236.9507932,0.0004,4]
[319577639,1710880156756,-160.25478997,0.00040237,4]
[319577735,1710880232346,-61.52785829,0.00040237,4]
[319577736,1710880232356,-324.03136722,0.00040237,3]
[319577738,1710880232365,-166.666666,0.00040349,2]
[319577740,1710880232375,-166.666666,0.00041341,2]
[319577741,1710880232385,-362.990172,0.00042744,120]
[319577742,1710880232396,-168.51257867,0.00044153,11]
[319577743,1710880232406,-17273.2999676,0.00046481,2]
[319577744,1710880232415,-241.81256807,0.00047591,4]
[319577745,1710880232424,-322.50861399,0.00047592,4]
[319577746,1710880232434,-154.86062544,0.00047593,4]
[319577747,1710880232444,-1196.38721552,0.00047999,4]
[319577749,1710880232453,-400.0,0.00048,120]
[319577750,1710880232463,-362.990172,0.00048851,120]
[319577752,1710880232472,-632.85536102,0.00048996,120]
[319577753,1710880232481,-4059.08526458,0.00048997,4]
[319577755,1710880232490,-500.0,0.00048999,120]
[319577756,1710880232499,-46358.63870845,0.00049,120]
[319577766,1710880232676,-1710.65187877,0.00049,120]
[319577783,1710880238086,-298.19795159,0.00049,120]
[319577784,1710880238324,-1333.24423174,0.00049,120]
[319577785,1710880238334,-1099.91081864,0.00049,120]
[319577786,1710880238346,-431.00425209,0.00049,120]
[319577787,1710880238355,-500.0,0.00049661,120]
[319577788,1710880238365,-53.65511932,0.00049661,120]
[319578173,1710880246544,-324.03136722,0.00040237,3]
[319578175,1710880246554,-518.0051554,0.0004851,120]
[319578177,1710880246563,-446.34488068,0.00049661,120]
[319578179,1710880246572,-500.0,0.00049661,120]
[319578181,1710880246582,-633.48262614,0.00049661,120]
[319578183,1710880246594,-500.0,0.00049661,120]
[319578185,1710880246603,-222.53702651,0.00049661,120]
[319578187,1710880246613,-5179.9633,0.00049662,30]
[319578189,1710880246624,-171675.78193661,0.00049917,120]
[319579336,1710881138116,-210.03373486,0.00025078,2]
[319579337,1710881138137,-539.11925568,0.00025079,2]
[319579338,1710881138157,-318.12167853,0.00025083,2]
[319579339,1710881275364,1237.30815207,0.00022983,2]
[319579340,1710881345110,-1155.51136485,0.00027983,2]
[319579341,1710881348205,-81.79678722,0.00027983,2]
[319579342,1710881348225,-154.86062544,0.0004,4]
[319579343,1710881348245,-154.86062544,0.0004,4]
[319579344,1710881348265,-1149.32392617,0.00040137,2]
[319579345,1710881348284,-125.82470173,0.00040237,3]
[319579379,1710881432567,-117.19882365,0.00040237,3]
[319579380,1710881432577,-322.50861399,0.00046017,4]
[319579381,1710881432586,-166.666666,0.00046018,2]
[319579382,1710881432595,-177.030808,0.00046583,2]
[319579383,1710881432604,-463.323377,0.00046611,120]
[319579384,1710881432613,-542.0,0.00046943,3]
[319579385,1710881432622,-356.0,0.00046944,2]
[319579386,1710881432631,-16810.89187669,0.00046944,2]
[319579387,1710881432643,-8089.10812331,0.00046944,2]
[319579388,1710881432653,-168.51257867,0.00047051,13]
[319579389,1710881432662,-229.455254,0.00047203,2]
[319579390,1710881432671,-166.666666,0.00047272,2]
[319579391,1710881432680,-1000.0,0.00048,120]
[319579392,1710881432690,-166.666666,0.00048527,2]
[319579393,1710881432699,-205.379667,0.00048547,2]
[319579394,1710881432708,-676.77354658,0.00048875,15]
[319579395,1710881432718,-454.94876626,0.00049418,2]
[319579396,1710881432727,-166.666666,0.00049781,2]
[319579397,1710881432736,-283.40983389,0.00049799,2]
[319579398,1710881432745,-177.030808,0.00049844,2]
[319579399,1710881432754,-239.55995462,0.00049897,4]
[319579400,1710881432763,-500.0,0.00049898,120]
[319579401,1710881432773,-451.34275891,0.00049898,120]
[319579402,1710881432782,-390.70213506,0.00049898,120]
[319579403,1710881432792,-237.59747688,0.00049898,120]
[319579404,1710881432801,-283.40983387,0.00049898,2]
[319579405,1710881432810,-6414.889685,0.00049899,61]
[319579406,1710881432819,-15683.40562967,0.00049899,2]
[319579426,1710881438345,-509.65,0.00049899,2]
[319579427,1710881438430,-24977.55591296,0.00049899,2]
[319579428,1710881438446,-838.29676906,0.00049899,2]
[319579440,1710881441607,-497.54723284,0.00049899,2]
[319582559,1710881640174,18480.05765168,0.00015498,2]
[319582579,1710882440678,-154.84515485,0.00034491,4]
[319582580,1710882440715,-800.79324474,0.00034491,4]
[319582581,1710882440737,-802.11666527,0.00034491,4]
[319582582,1710882440760,-282.19503724,0.00034492,4]
[319582583,1710882440781,-184.18488604,0.00034493,4]
[319582584,1710882440803,-1000.7003269,0.00034494,2]
[319582585,1710882440825,-154.84515485,0.00034593,4]
[319582586,1710882440845,-154.84515485,0.00034593,4]
[319582587,1710882440866,-238.24649341,0.00034594,4]
[319582594,1710882563270,-362.09279444,0.00032063,4]
[319582595,1710882563293,-704.36144243,0.00032064,120]
[319582596,1710882563316,-1249.5985289,0.00032388,4]
[319582597,1710882563336,-1335.0234943,0.00032388,7]
[319582598,1710882563357,-513.29711523,0.00032389,4]
[319582599,1710882563377,-419.87333795,0.00032389,2]
[319582600,1710882563399,-866.65517188,0.00032391,2]
[319582601,1710882563421,-390.8827476,0.00034599,4]
[319582602,1710882563441,-413.05798392,0.0003496,4]
[319582603,1710882563463,-1634.42089968,0.00035,10]
[319582604,1710882563613,-482.7515922,0.00035692,7]
[319582605,1710882563634,-866.65517188,0.00037391,2]
[319582606,1710882563655,-166.666666,0.00037397,2]
[319582607,1710882563675,-205.379667,0.00037819,2]
[319582608,1710882563695,-166.666666,0.00038417,2]
[319582609,1710882563714,-166.666666,0.00039436,2]
[319582610,1710882563735,-216.78073414,0.000401,2]
[319582611,1710882563755,-177.030808,0.00040315,2]
[319582612,1710882563777,-300.0,0.00040885,3]
[319582613,1710882563800,-2338.1877349,0.00040985,2]
[319582614,1710882563821,-347.492532,0.00041052,120]
[319582615,1710882563842,-866.65517188,0.00042391,2]
[319582616,1710882563863,-204.763172,0.00042958,2]
[319582617,1710882563884,-177.030808,0.00043137,2]
[319582618,1710882563907,-11908.06241994,0.00044278,2]
[319582635,1710882632543,-166.666666,0.00040456,2]
[319582637,1710882632553,-166.666666,0.00041475,2]
[319582639,1710882632563,-166.666666,0.00042495,2]
[319582641,1710882632572,-4048.84705683,0.00044,2]
[319583123,1710882638510,-259.52919819,0.00044,2]
[319583124,1710882638522,-998.36030001,0.00044,2]
[319583125,1710882638534,-2194.32301766,0.00044,2]
[319583126,1710882638594,-18332.22789225,0.00044,2]
[319583127,1710882638605,-11461.2504328,0.00044278,2]
[319583128,1710882638621,-1530.68714726,0.00044278,2]
[319583129,1710882638632,-581.15077392,0.00047923,4]
[319583130,1710882638647,-334.04150579,0.00047923,4]
[319583131,1710882638657,-210.49701262,0.00047924,4]
[319583132,1710882638668,-260.619399,0.00047925,120]
[319583133,1710882638680,-5700.00000001,0.00048,2]
[319583134,1710882638691,-2755.82062286,0.00049392,4]
[319583135,1710882638701,-359.58871812,0.00049393,2]
[319583136,1710882638711,-312.16247908,0.00049396,4]
[319583137,1710882638721,-421.51412129,0.00049396,4]
[319583138,1710882638732,-309.84512699,0.00049397,4]
[319583139,1710882638742,-268.07049675,0.00049698,2]
[319583140,1710882638752,-411.10498337,0.000497,120]
[319583141,1710882638761,-268.07049673,0.00049723,2]
[319583142,1710882638772,-268.07049673,0.00049748,2]
[319583143,1710882638784,-268.07049673,0.00049773,2]
[319583144,1710882638795,-466.73139213,0.00049794,2]
[319583145,1710882638804,-255.19184954,0.00049794,4]
[319583146,1710882638814,-404.25845782,0.00049794,90]
[319583147,1710882638823,-272.20266201,0.00049795,4]
[319583148,1710882638833,-445.86687359,0.00049795,4]
[319583149,1710882638842,-455.14244505,0.00049795,4]
[319583150,1710882638851,-500.0,0.00049795,120]
[319583151,1710882638860,-4500.50739989,0.00049796,61]
[319583476,1710882643594,-236.0929721,0.00049794,4]
[319583478,1710882643603,-190.87886614,0.00049796,61]
[319583685,1710882646607,-262.67803637,0.00049795,7]
[319583686,1710882646623,-2605.32308731,0.00049796,61]
[319583687,1710882646639,-7179.84289874,0.00049796,120]
[319583688,1710882646655,-10000.0,0.00049796,120]
[319583689,1710882646667,-10000.0,0.00049796,120]
[319583690,1710882646677,-10000.0,0.00049796,120]
[319583691,1710882646692,-10000.0,0.00049796,120]
[319583692,1710882646706,-10000.0,0.00049796,120]
[319583693,1710882646719,-10000.0,0.00049796,120]
[319583694,1710882646732,-10000.0,0.00049796,120]
[319583695,1710882646745,-10000.0,0.00049796,120]
[319583696,1710882646763,-9952.15597758,0.00049796,120]
[319583698,1710882646801,-0.16740708,0.00049796,120]
[319584029,1710883037929,508.9375651,0.00023805,2]
[319584049,1710883323706,5164.94391209,0.00023567,2]
[319584051,1710883341705,2883.8974984,0.00023567,2]
[319584080,1710883557290,-876.3244026,0.00025258,2]
[319584081,1710883557407,-337.12691269,0.00025259,2]
[319584082,1710883557428,-119.18733819,0.0002526,2]
[319584083,1710883558590,24.85522066,0.00023567,2]
[319584084,1710883558624,2376.13702589,0.00023567,2]
[319584085,1710883563738,2173.42259108,0.00023331,2]
[319584088,1710883567034,15964.69060675,0.00023567,2]
[319584089,1710883574898,154.84515485,0.00023567,2]
[319584090,1710883580591,2400.99224655,0.00023331,2]
[319584091,1710883587015,12997.31433519,0.00023331,2]
[319584092,1710883596588,2000.82687212,0.00023331,2]
[319584093,1710883599840,154.84515485,0.00023331,2]
[319584094,1710883612583,2000.82687212,0.00023331,2]
[319584095,1710883620352,154.84515485,0.00023331,2]
[319584096,1710883630587,1042.43080038,0.00023331,2]
[319584097,1710883636107,-217.9395745,0.0002526,2]
[319584098,1710883636127,-169.81543714,0.0004417,4]
[319584106,1710883646587,1042.43080038,0.00023331,2]
[319584108,1710883664591,1042.43080038,0.00023331,2]
[319584122,1710883704705,1042.43080038,0.00023331,2]
[319584123,1710883734719,1042.43080038,0.00023331,2]
[319584124,1710883749111,-751.26954896,0.00033235,4]
[319584125,1710883749132,-160.91641444,0.00033236,4]
[319584129,1710883756174,-156.81250171,0.00033236,4]
[319584130,1710883756200,-2110.21913802,0.00033237,4]
[319584131,1710883756222,-465.71772837,0.00033238,7]
[319584132,1710883758731,1042.43080038,0.00023331,2]
[319584136,1710883799763,1042.43080038,0.00023331,2]
[319584137,1710883832678,-377.43369852,0.00032902,2]
[319584138,1710883832688,-1084.4278567,0.00033233,4]
[319584139,1710883832697,-377.43369852,0.00033234,4]
[319584140,1710883832707,-26.25525122,0.00033238,7]
[319584141,1710883832716,-166.24095408,0.00043726,4]
[319584142,1710883832726,-732.7493681,0.00043727,4]
[319584143,1710883832735,-166.666666,0.00044833,2]
[319584144,1710883832744,-515.01138695,0.00045615,4]
[319584145,1710883832754,-173.816799,0.00045717,2]
[319584146,1710883832763,-736.737121,0.00045748,120]
[319584157,1710883832923,-289.0,0.00046032,2]
[319584159,1710883832937,-24900.0,0.00046032,2]
[319584160,1710883832947,-166.666666,0.00046055,2]
[319584161,1710883832957,-2000.0,0.00046781,30]
[319584162,1710883832966,-170.995944,0.00047127,2]
[319584163,1710883832977,-166.666666,0.00047277,2]
[319584164,1710883832986,-3479.72691747,0.00047305,120]
[319584165,1710883832996,-347.68788859,0.00047817,2]
[319584166,1710883833006,-347.68788858,0.00047846,2]
[319584168,1710883833015,-347.68788858,0.00047876,2]
[319584170,1710883833024,-347.68788858,0.00047905,2]
[319584172,1710883833034,-1000.0,0.00047914,2]
[319584174,1710883833044,-1362.12354064,0.00047915,4]
[319584176,1710883833054,-210.81749262,0.00047915,4]
[319584178,1710883833063,-366.70867128,0.00047915,4]
[319584180,1710883833073,-963.76973243,0.00047915,4]
[319584182,1710883833082,-298.96925701,0.00047915,4]
[319584184,1710883833092,-160.0,0.00047916,30]
[319584186,1710883833103,-500.0,0.00047916,120]
[319584188,1710883833114,-500.0,0.00047916,120]
[319584190,1710883833123,-500.0,0.00047916,120]
[319584192,1710883833132,-500.0,0.00047916,120]
[319584194,1710883833143,-200.0,0.00047916,120]
[319584196,1710883833153,-500.0,0.00047916,120]
[319584198,1710883833163,-500.0,0.00047916,120]
[319584200,1710883833173,-500.0,0.00047916,120]
[319584202,1710883833184,-500.0,0.00047916,120]
[319584204,1710883833194,-500.0,0.00047916,120]
[319584206,1710883833204,-500.0,0.00047916,120]
[319584208,1710883833214,-500.0,0.00047916,120]
[319584210,1710883833223,-500.0,0.00047916,120]
[319584212,1710883833234,-650.0,0.00047916,120]
[319584213,1710883833243,-500.0,0.00047916,120]
[319584214,1710883833253,-31178.24253458,0.00047917,61]
[319584216,1710883833262,-160.0,0.00047917,30]
[319584217,1710883833275,-160.0,0.00047917,30]
[319584219,1710883833285,-604.53502702,0.00047917,120]
[319584220,1710883833294,-10000.0,0.00047917,120]
[319584221,1710883833305,-10000.0,0.00047917,120]
[319584222,1710883833316,-6104.05311722,0.00047917,120]
[319584226,1710883833771,1042.43080038,0.00023331,2]
[319584232,1710883838679,-270.66952964,0.00047917,120]
[319584241,1710883840865,-523.53543373,0.00047438,2]
[319591392,1710883941223,-326.0,0.00024126,2]
[319591395,1710884006564,-814.47542875,0.00024124,2]
[319591396,1710884006585,-325.62849554,0.00024125,2]
[319591397,1710884006606,-149.57388027,0.00024126,2]
[319591398,1710884006629,-154.84515485,0.00024126,2]
[319591399,1710884006651,-685.47704059,0.00024126,2]
[319591400,1710884020927,356.95375979,0.00023885,2]
[319591401,1710884028652,356.95375979,0.00023885,2]
[319591402,1710884037275,595.53979032,0.00023885,2]
[319591406,1710884045033,595.53979032,0.00023885,2]
[319591407,1710884054330,595.53979032,0.00023885,2]
[319591408,1710884062135,595.53979032,0.00023885,2]
[319591409,1710884071211,595.53979032,0.00023885,2]
[319591410,1710884109535,1042.43080038,0.00023885,2]
[319591411,1710884125618,1137.27623987,0.00023885,2]
[319591413,1710884732202,-210.03373486,0.00024122,2]
[319591414,1710884732222,-154.84515485,0.00024123,2]
[319591415,1710884732242,-238.58603053,0.00024126,2]
[319591416,1710884732262,-490.34614727,0.0003,4]
[319591417,1710884848107,-168.0,0.00039699,4]
[319591418,1710884892551,609.16299383,0.00022026,2]
[319591419,1710884953121,-500.0,0.00027026,2]
[319591420,1710884953154,-109.16299383,0.00027026,2]
[319591421,1710884953174,-609.16299383,0.00032026,2]
[319591422,1710884974113,-473.15569708,0.00039699,4]
[319591423,1710884974134,-290.68384232,0.000397,7]
[319591424,1710884974155,-166.24095408,0.00042102,4]
[319591425,1710884974175,-194.525012,0.00042103,2]
[319591426,1710884974195,-166.666666,0.00043054,2]
[319591427,1710884974217,-7140.51657153,0.00043453,2]
[319591450,1710885032013,-1001.2379899,0.00043752,2]
[319591452,1710885032023,-166.666666,0.00044228,2]
[319591453,1710885032032,-308.2187328,0.00044296,2]
[319591454,1710885032042,-173.816799,0.00044296,2]
[319591455,1710885032051,-2000.0,0.00044971,21]
[319591456,1710885032060,-6309.5539033,0.00045079,2]
[319591457,1710885032069,-552.55284,0.00045156,120]
[319591458,1710885032078,-153.0,0.00045306,30]
[319591459,1710885032087,-166.666666,0.00045401,2]
[319591460,1710885032096,-166.666666,0.00046575,2]
[319591461,1710885032105,-2000.0,0.00046793,30]
[319591462,1710885032115,-155.0,0.00046984,4]
[319591463,1710885032124,-941.35213922,0.00047436,2]
[319591464,1710885032133,-4734.38,0.00047436,120]
[319591465,1710885032142,-45026.49692715,0.00047437,4]
[319591466,1710885032151,-166.666666,0.00047749,2]
[319591467,1710885032160,-261.17256191,0.00047816,2]
[319591468,1710885032170,-1000.0,0.00047817,2]
[319591469,1710885032180,-261.17256188,0.00047823,2]
[319591470,1710885032190,-261.17256188,0.00047831,2]
[319591471,1710885032199,-261.17256188,0.00047838,2]
[319591472,1710885032208,-2371.3687098,0.00047845,2]
[319591473,1710885032218,-261.17256188,0.00047845,2]
[319591474,1710885032228,-2371.36870973,0.00047856,2]
[319591475,1710885032237,-2371.36870973,0.00047867,2]
[319591476,1710885032246,-2371.36870973,0.00047879,2]
[319591477,1710885032255,-2371.36870973,0.0004789,2]
[319591478,1710885032264,-2000.0,0.00047898,30]
[319591479,1710885032274,-12500.0,0.000479,61]
[319591480,1710885032283,-14940.30843335,0.000479,120]
[319591481,1710885032295,-12415.7906034,0.000479,120]
[319591482,1710885032306,-21383.29908852,0.000479,120]
[319591483,1710885032317,-28605.10512797,0.000479,120]
[319591699,1710885039989,-300.0,0.00047897,120]
[319591701,1710885039998,-197.54723284,0.00047897,120]
[319592007,1710885042954,-152.45276716,0.00047897,120]
[319592008,1710885042963,-7918.59910676,0.000479,120]
[319592009,1710885042973,-2371.36870973,0.00047901,2]
[319592010,1710885042982,-2371.36870973,0.00047912,2]
[319592011,1710885042991,-4734.38,0.00047916,120]
[319592012,1710885043001,-4734.38,0.00047916,120]
[319592013,1710885043010,-4734.38,0.00047916,120]
[319592014,1710885043019,-299.90396286,0.00047917,4]
[319592015,1710885043028,-151.0,0.00047917,7]
[319592016,1710885043037,-152.416661,0.00047917,7]
[319592017,1710885043047,-151.0,0.00047917,7]
[319592018,1710885043056,-151.0,0.00047917,7]
[319592019,1710885043065,-151.0,0.00047917,7]
[319592020,1710885043074,-151.0,0.00047917,7]
[319592021,1710885043084,-151.0,0.00047917,7]
[319592022,1710885043104,-151.0,0.00047917,7]
[319592023,1710885043115,-151.0,0.00047917,7]
[319592024,1710885043125,-288.135341,0.00047917,7]
[319592025,1710885043135,-278.141052,0.00047917,7]
[319592026,1710885043145,-500.0,0.00047917,7]
[319592027,1710885043154,-500.0,0.00047917,7]
[319592028,1710885043164,-500.0,0.00047917,7]
[319592029,1710885043174,-500.0,0.00047917,7]
[319592030,1710885043184,-500.0,0.00047917,7]
[319592031,1710885043194,-500.0,0.00047917,7]
[319592032,1710885043204,-500.0,0.00047917,7]
[319592033,1710885043213,-500.0,0.00047917,7]
[319592034,1710885043223,-500.0,0.00047917,7]
[319592035,1710885043233,-500.0,0.00047917,7]
[319592036,1710885043243,-356.31539857,0.00047917,7]
[319592178,1710885046342,-166.24095408,0.00047896,4]
[319592180,1710885046352,-296.97473943,0.00047917,7]
[319592182,1710885046363,-653.290138,0.00047917,7]
[319592184,1710885046373,-653.290138,0.00047917,7]
[319592186,1710885046383,-653.290138,0.00047917,7]
[319592188,1710885046393,-653.290138,0.00047917,7]
[319592190,1710885046403,-653.290138,0.00047917,7]
[319592193,1710885046413,-653.290138,0.00047917,7]
[319592195,1710885046423,-653.290138,0.00047917,7]
[319592197,1710885046436,-653.290138,0.00047917,7]
[319592198,1710885046445,-653.290138,0.00047917,7]
[319592200,1710885046455,-653.290138,0.00047917,7]
[319592202,1710885046465,-653.290138,0.00047917,7]
[319592205,1710885046475,-151.0,0.00047917,7]
[319592206,1710885046484,-151.0,0.00047917,7]
[319592209,1710885046494,-151.0,0.00047917,7]
[319592211,1710885046503,-250.892833,0.00047917,7]
[319592213,1710885046514,-2500.206007,0.00047917,7]
[319592215,1710885046523,-2500.206007,0.00047917,7]
[319592217,1710885046533,-2500.206007,0.00047917,7]
[319592219,1710885046543,-2500.206007,0.00047917,7]
[319592220,1710885046555,-2500.206007,0.00047917,7]
[319592223,1710885046565,-2500.206007,0.00047917,7]
[319592225,1710885046574,-2500.206007,0.00047917,7]
[319592227,1710885046583,-2500.206007,0.00047917,7]
[319592229,1710885046592,-2500.206007,0.00047917,7]
[319592231,1710885046602,-2500.206007,0.00047917,7]
[319592232,1710885046611,-2500.206007,0.00047917,7]
[319592234,1710885046622,-2500.206007,0.00047917,7]
[319592237,1710885046634,-2500.206007,0.00047917,7]
[319592239,1710885046644,-2500.206007,0.00047917,7]
[319592241,1710885046654,-262.035617,0.00047917,7]
[319592243,1710885046663,-262.035617,0.00047917,7]
[319592245,1710885046673,-262.035617,0.00047917,7]
[319592247,1710885046683,-262.035617,0.00047917,7]